fUST/lending_fUST_20250522
["ID","MTS","AMOUNT","RATE_DAILY","PERIOD"]
[361933572,1747899037536,-430.0,0.00022191,2]
[361933573,1747899037546,-430.0,0.00022191,2]
[361933574,1747899037555,-430.0,0.00022191,2]
[361933575,1747899037565,-420.0,0.00022191,2]
[361933577,1747899037574,-430.0,0.00022191,2]
[361933578,1747899037583,-430.0,0.00022191,2]
[361933579,1747899037592,-535.09,0.00022191,2]
[361933580,1747899037603,-490.0,0.00022191,2]
[361933581,1747899037612,-430.0,0.00022191,2]
[361933582,1747899037622,-430.0,0.00022191,2]
[361933583,1747899037632,-430.0,0.00022191,2]
[361933584,1747899037642,-430.0,0.00022191,2]
[361933585,1747899037652,-378.62557176,0.00022191,2]
[361933586,1747899037662,-400.0,0.00022191,2]
[361933587,1747899037672,-430.0,0.00022191,2]
[361933588,1747899037682,-430.0,0.00022191,2]
[361933589,1747899037692,-430.0,0.00022191,2]
[361933590,1747899037701,-430.0,0.00022191,2]
[361933591,1747899037711,-430.0,0.00022191,2]
[361933592,1747899037721,-430.0,0.00022191,2]
[361933593,1747899037730,-430.0,0.00022191,2]
[361933594,1747899037739,-280.56,0.00022191,2]
[361933595,1747899037749,-1063.86,0.00022191,2]
[361933596,1747899037758,-2278.27,0.00022191,2]
[361933597,1747899037768,-430.0,0.00022191,2]
[361933598,1747899037777,-430.0,0.00022191,2]
[361933600,1747899037787,-3039.67,0.00022191,2]
[361933601,1747899037796,-430.0,0.00022191,2]
[361933602,1747899037806,-430.0,0.00022191,2]
[361933603,1747899037815,-430.0,0.00022191,2]
[361933604,1747899037824,-430.0,0.00022191,2]
[361933605,1747899037834,-466.64,0.00022191,2]
[361933606,1747899037844,-430.0,0.00022191,2]
[361933607,1747899037853,-430.0,0.00022191,2]
[361933608,1747899037864,-430.0,0.00022191,2]
[361933609,1747899037874,-430.0,0.00022191,2]
[361933610,1747899037884,-692.67,0.00022191,2]
[361933611,1747899037894,-430.0,0.00022191,2]
[361933612,1747899037904,-1073.63,0.00022191,2]
[361933613,1747899037914,-651.66,0.00022191,2]
[361933614,1747899037925,-430.0,0.00022191,2]
[361933615,1747899037934,-430.0,0.00022191,2]
[361933616,1747899037945,-430.0,0.00022191,2]
[361933618,1747899038062,-337.46764265,0.00022191,2]
[361933619,1747899038073,-430.0,0.00022191,2]
[361933620,1747899038083,-483.12,0.00022191,2]
[361933621,1747899038093,-430.0,0.00022191,2]
[361933622,1747899038103,-430.0,0.00022191,2]
[361933623,1747899038114,-430.0,0.00022191,2]
[361933624,1747899038123,-430.0,0.00022191,2]
[361933625,1747899038134,-430.0,0.00022191,2]
[361933626,1747899038143,-755.55,0.00022191,2]
[361933627,1747899038156,-430.0,0.00022191,2]
[361933628,1747899038166,-176.0716068,0.00022247,2]
[361933629,1747899038175,-154.2915306,0.00022247,2]
[361933630,1747899038184,-158.1770606,0.00022247,2]
[361933631,1747899038195,-176.0716068,0.00022247,2]
[361933632,1747899038204,-158.1770606,0.00022247,2]
[361933633,1747899038214,-153.1615945,0.00022247,2]
[361933634,1747899038224,-176.0716068,0.00022278,2]
[361933635,1747899038234,-158.1770606,0.00022278,2]
[361933636,1747899038244,-1140.0397524,0.00022278,2]
[361933637,1747899038254,-306.0,0.00022278,2]
[361933638,1747899038264,-158.1770606,0.000223,2]
[361933639,1747899038274,-176.0716068,0.000223,2]
[361933640,1747899038284,-1068.73664734,0.00022365,2]
[361933641,1747899038294,-501.15011034,0.00022368,2]
[361933642,1747899038303,-500.0,0.00022368,2]
[361933643,1747899038313,-502.23869668,0.00022368,2]
[361933644,1747899038323,-500.0,0.00022368,2]
[361933645,1747899038333,-500.0,0.00022368,2]
[361933646,1747899038343,-500.79890701,0.00022368,2]
[361933647,1747899038353,-500.0,0.00022368,2]
[361933648,1747899038364,-270.23043266,0.00022368,2]
[361933649,1747899038374,-253.58874111,0.00022368,2]
[361933650,1747899038384,-216.01084162,0.00022368,2]
[361933651,1747899038394,-501.4671825,0.00022368,2]
[361933652,1747899038404,-500.0,0.00022368,2]
[361933653,1747899038414,-502.95954698,0.00022376,2]
[361933654,1747899038424,-431.88632832,0.00022376,2]
[361933655,1747899038434,-500.0,0.00022376,2]
[361933656,1747899038444,-500.0,0.00022385,2]
[361933657,1747899038455,-500.0,0.00022385,2]
[361933658,1747899038464,-500.0,0.00022385,2]
[361933659,1747899038473,-500.0,0.00022387,2]
[361933660,1747899038483,-500.0,0.00022409,2]
[361933661,1747899038492,-410.84989584,0.0002245,2]
[361933662,1747899038501,-477.85468765,0.0002245,2]
[361933663,1747899038511,-500.0,0.0002245,2]
[361933664,1747899038520,-500.0,0.0002245,2]
[361933665,1747899038530,-500.0,0.0002245,2]
[361933666,1747899038539,-500.0,0.00022462,2]
[361933667,1747899038549,-430.0,0.00022465,2]
[361933668,1747899038559,-430.0,0.00022465,2]
[361933669,1747899038569,-430.0,0.00022465,2]
[361933670,1747899038579,-430.0,0.00022465,2]
[361933671,1747899038588,-430.0,0.00022465,2]
[361933672,1747899038598,-430.0,0.00022465,2]
[361933673,1747899038608,-430.0,0.00022465,2]
[361933674,1747899038618,-430.0,0.00022465,2]
[361933675,1747899038628,-430.0,0.00022465,2]
[361933676,1747899038638,-430.0,0.00022465,2]
[361933677,1747899038649,-430.0,0.00022465,2]
[361933678,1747899038659,-430.0,0.00022465,2]
[361933679,1747899038668,-470.0,0.00022465,2]
[361933680,1747899038678,-430.0,0.00022465,2]
[361933681,1747899038688,-390.52284534,0.00022465,2]
[361933682,1747899038699,-467.8,0.00022465,2]
[361933683,1747899038709,-430.0,0.00022465,2]
[361933684,1747899038719,-500.88,0.00022465,2]
[361933685,1747899038729,-430.0,0.00022465,2]
[361933686,1747899038739,-430.0,0.00022465,2]
[361933687,1747899038748,-430.0,0.00022465,2]
[361933688,1747899038758,-430.0,0.00022465,2]
[361933689,1747899038768,-430.0,0.00022465,2]
[361933690,1747899038777,-430.0,0.00022465,2]
[361933691,1747899038786,-430.0,0.00022465,2]
[361933692,1747899038796,-430.0,0.00022465,2]
[361933693,1747899038805,-430.0,0.00022465,2]
[361933694,1747899038814,-430.0,0.00022465,2]
[361933695,1747899038824,-152.59195497,0.00022465,2]
[361933696,1747899038834,-575.05438833,0.00022465,2]
[361933697,1747899038845,-430.0,0.00022465,2]
[361933698,1747899038855,-430.0,0.00022465,2]
[361933699,1747899038865,-430.0,0.00022465,2]
[361933700,1747899038874,-430.0,0.00022465,2]
[361933701,1747899038884,-190.22664354,0.00022465,2]
[361933702,1747899038895,-461.51,0.00022465,2]
[361933703,1747899038905,-430.0,0.00022465,2]
[361933704,1747899038915,-569.73890092,0.00022465,2]
[361933705,1747899038924,-430.0,0.00022465,2]
[361933706,1747899038934,-430.0,0.00022465,2]
[361933707,1747899038944,-430.0,0.00022465,2]
[361933708,1747899038954,-430.0,0.00022465,2]
[361933709,1747899038964,-430.0,0.00022465,2]
[361933710,1747899038973,-430.0,0.00022465,2]
[361933711,1747899038982,-430.0,0.00022465,2]
[361933712,1747899038992,-430.0,0.00022465,2]
[361933713,1747899039002,-430.0,0.00022465,2]
[361933714,1747899039012,-430.0,0.00022465,2]
[361933715,1747899039022,-430.0,0.00022465,2]
[361933716,1747899039032,-430.0,0.00022465,2]
[361933717,1747899039042,-430.0,0.00022465,2]
[361933718,1747899039051,-430.0,0.00022465,2]
[361933719,1747899039061,-430.0,0.00022465,2]
[361933720,1747899039071,-430.0,0.00022465,2]
[361933721,1747899039080,-430.0,0.00022465,2]
[361933722,1747899039090,-701.93,0.00022465,2]
[361933723,1747899039099,-415.19592055,0.00022465,2]
[361933724,1747899039109,-593.38,0.00022465,2]
[361933725,1747899039118,-430.0,0.00022465,2]
[361933726,1747899039129,-430.0,0.00022465,2]
[361933727,1747899039138,-437.64,0.00022465,2]
[361933728,1747899039149,-430.0,0.00022465,2]
[361933729,1747899039163,-430.0,0.00022465,2]
[361933730,1747899039173,-436.67,0.00022465,2]
[361933731,1747899039183,-430.0,0.00022465,2]
[361933732,1747899039195,-2447.89,0.00022465,2]
[361933733,1747899039204,-430.0,0.00022465,2]
[361933734,1747899039214,-475.46,0.00022465,2]
[361933735,1747899039223,-473.35975714,0.00022465,2]
[361933736,1747899039234,-430.0,0.00022465,2]
[361933737,1747899039244,-430.0,0.00022465,2]
[361933738,1747899039253,-430.0,0.00022465,2]
[361933739,1747899039263,-430.0,0.00022465,2]
[361933740,1747899039273,-430.0,0.00022465,2]
[361933741,1747899039283,-430.0,0.00022465,2]
[361933742,1747899039293,-1056.91,0.00022465,2]
[361933743,1747899039302,-430.0,0.00022465,2]
[361933744,1747899039312,-430.0,0.00022465,2]
[361933745,1747899039322,-430.0,0.00022465,2]
[361933746,1747899039332,-1469.2,0.00022465,2]
[361933747,1747899039341,-467.8,0.00022465,2]
[361933748,1747899039351,-430.0,0.00022465,2]
[361933749,1747899039361,-430.0,0.00022465,2]
[361933750,1747899039370,-430.0,0.00022465,2]
[361933751,1747899039381,-430.0,0.00022465,2]
[361933752,1747899039390,-430.0,0.00022465,2]
[361933753,1747899039400,-926.0,0.00022465,2]
[361933754,1747899039410,-430.0,0.00022465,2]
[361933755,1747899039420,-430.0,0.00022465,2]
[361933756,1747899039430,-430.0,0.00022465,2]
[361933757,1747899039440,-430.0,0.00022465,2]
[361933758,1747899039449,-430.0,0.00022465,2]
[361933759,1747899039459,-430.0,0.00022465,2]
[361933760,1747899039469,-430.0,0.00022465,2]
[361933761,1747899039479,-1009.58,0.00022465,2]
[361933762,1747899039488,-430.0,0.00022465,2]
[361933763,1747899039497,-430.0,0.00022465,2]
[361933764,1747899039507,-430.0,0.00022465,2]
[361933765,1747899039516,-430.0,0.00022465,2]
[361933766,1747899039526,-430.0,0.00022465,2]
[361933767,1747899039536,-430.0,0.00022465,2]
[361933768,1747899039546,-430.0,0.00022465,2]
[361933769,1747899039555,-400.0,0.00022465,2]
[361933770,1747899039565,-430.0,0.00022465,2]
[361933771,1747899039575,-430.0,0.00022465,2]
[361933772,1747899039583,-430.0,0.00022465,2]
[361933773,1747899039593,-430.0,0.00022465,2]
[361933774,1747899039602,-430.0,0.00022465,2]
[361933775,1747899039611,-430.0,0.00022465,2]
[361933776,1747899039622,-430.0,0.00022465,2]
[361933777,1747899039633,-430.0,0.00022465,2]
[361933778,1747899039642,-430.0,0.00022465,2]
[361933779,1747899039652,-470.0,0.00022465,2]
[361933780,1747899039662,-430.0,0.00022465,2]
[361933781,1747899039672,-430.0,0.00022465,2]
[361933782,1747899039682,-635.0,0.00022465,2]
[361933783,1747899039691,-430.0,0.00022465,2]
[361933784,1747899039701,-430.0,0.00022465,2]
[361933785,1747899039711,-430.0,0.00022465,2]
[361933786,1747899039720,-430.0,0.00022465,2]
[361933787,1747899039730,-1493.02,0.00022465,2]
[361933788,1747899039739,-430.0,0.00022465,2]
[361933789,1747899039760,-430.0,0.00022465,2]
[361933790,1747899039772,-430.0,0.00022465,2]
[361933791,1747899039782,-688.76,0.00022465,2]
[361933792,1747899039931,-338.67794015,0.00022465,2]
[361933793,1747899039943,-391.92,0.00022465,2]
[361933795,1747899039953,-430.0,0.00022465,2]
[361933796,1747899039963,-430.0,0.00022465,2]
[361933798,1747899039974,-430.0,0.00022465,2]
[361933800,1747899039983,-560.31747311,0.00022465,2]
[361933802,1747899039993,-535.09,0.00022465,2]
[361933804,1747899040003,-430.0,0.00022465,2]
[361933805,1747899040013,-430.0,0.00022465,2]
[361933806,1747899040023,-430.0,0.00022465,2]
[361933807,1747899040032,-430.0,0.00022465,2]
[361933808,1747899040042,-430.0,0.00022465,2]
[361933810,1747899040052,-430.0,0.00022465,2]
[361933812,1747899040062,-430.0,0.00022465,2]
[361933814,1747899040071,-430.0,0.00022465,2]
[361933816,1747899040081,-430.0,0.00022465,2]
[361933818,1747899040091,-430.0,0.00022465,2]
[361933820,1747899040103,-430.0,0.00022465,2]
[361933822,1747899040112,-1063.86,0.00022465,2]
[361933824,1747899040122,-2278.27,0.00022465,2]
[361933826,1747899040132,-430.0,0.00022465,2]
[361933828,1747899040143,-430.0,0.00022465,2]
[361933830,1747899040155,-3039.67,0.00022465,2]
[361933832,1747899040164,-430.0,0.00022465,2]
[361933834,1747899040174,-430.0,0.00022465,2]
[361933835,1747899040183,-430.0,0.00022465,2]
[361933836,1747899040191,-320.0,0.00022465,2]
[361933837,1747899040202,-466.64,0.00022465,2]
[361933838,1747899040211,-430.0,0.00022465,2]
[361933839,1747899040221,-430.0,0.00022465,2]
[361933840,1747899040231,-430.0,0.00022465,2]
[361933841,1747899040241,-692.67,0.00022465,2]
[361933842,1747899040250,-430.0,0.00022465,2]
[361933843,1747899040260,-1073.63,0.00022465,2]
[361933844,1747899040269,-651.66,0.00022465,2]
[361933845,1747899040278,-430.0,0.00022465,2]
[361933846,1747899040288,-430.0,0.00022465,2]
[361933847,1747899040297,-430.0,0.00022465,2]
[361933848,1747899040306,-430.0,0.00022465,2]
[361933849,1747899040315,-483.12,0.00022465,2]
[361933850,1747899040329,-430.0,0.00022465,2]
[361933851,1747899040339,-248.25270966,0.00022465,2]
[361933852,1747899040349,-430.0,0.00022465,2]
[361933853,1747899040358,-430.0,0.00022465,2]
[361933854,1747899040368,-755.55,0.00022465,2]
[361933855,1747899040377,-435.52355721,0.00022506,2]
[361933856,1747899040387,-500.0,0.00022506,2]
[361933857,1747899040396,-500.0,0.00022506,2]
[361933858,1747899040406,-268.30906159,0.00022516,2]
[361933859,1747899040416,-941.98974658,0.00022541,2]
[361933860,1747899040425,-160.0,0.00022577,2]
[361933861,1747899040435,-160.0,0.00022577,2]
[361933862,1747899040445,-160.0,0.00022577,2]
[361933863,1747899040455,-160.0,0.00022579,2]
[361933864,1747899040464,-160.0,0.00022579,2]
[361933865,1747899040474,-12645.25887003,0.00022579,2]
[361933866,1747899040483,-894.64583333,0.00022579,2]
[361933867,1747899040493,-422.78357425,0.00022579,2]
[361933868,1747899040502,-212.4501065,0.00022579,2]
[361933869,1747899040512,-207.4,0.00022605,2]
[361933870,1747899040521,-151.0,0.00022605,2]
[361933871,1747899040531,-500.0,0.00022618,2]
[361933872,1747899040540,-151.0,0.00022739,7]
[361933873,1747899040549,-151.0,0.00022739,7]
[361933874,1747899040559,-430.0,0.00022739,2]
[361933875,1747899040569,-430.0,0.00022739,2]
[361933876,1747899040578,-430.0,0.00022739,2]
[361933877,1747899040587,-430.0,0.00022739,2]
[361933878,1747899040597,-430.0,0.00022739,2]
[361933879,1747899040607,-430.0,0.00022739,2]
[361933880,1747899040618,-430.0,0.00022739,2]
[361933881,1747899040627,-488.1799649,0.00022739,2]
[361933883,1747899040637,-430.0,0.00022739,2]
[361933884,1747899040647,-430.0,0.00022739,2]
[361933886,1747899040657,-430.0,0.00022739,2]
[361933888,1747899040667,-430.0,0.00022739,2]
[361933890,1747899040676,-430.0,0.00022739,2]
[361933892,1747899040686,-430.0,0.00022739,2]
[361933894,1747899040695,-430.0,0.00022739,2]
[361933896,1747899040705,-430.0,0.00022739,2]
[361933898,1747899040715,-430.0,0.00022739,2]
[361933900,1747899040725,-430.0,0.00022739,2]
[361933902,1747899040734,-430.0,0.00022739,2]
[361933904,1747899040744,-461.51,0.00022739,2]
[361933906,1747899040754,-430.0,0.00022739,2]
[361933908,1747899040764,-430.0,0.00022739,2]
[361933910,1747899040774,-430.0,0.00022739,2]
[361933912,1747899040784,-430.0,0.00022739,2]
[361933914,1747899040793,-430.0,0.00022739,2]
[361933916,1747899040803,-430.0,0.00022739,2]
[361933918,1747899040813,-282.73360964,0.00022739,2]
[361933920,1747899040822,-430.0,0.00022739,2]
[361933922,1747899040832,-430.0,0.00022739,2]
[361933924,1747899040842,-361.77404005,0.00022739,2]
[361933926,1747899040852,-430.0,0.00022739,2]
[361933928,1747899040862,-430.0,0.00022739,2]
[361933930,1747899040872,-430.0,0.00022739,2]
[361933932,1747899040882,-430.0,0.00022739,2]
[361933934,1747899040892,-346.77002132,0.00022739,2]
[361933936,1747899040902,-701.93,0.00022739,2]
[361933938,1747899040912,-593.38,0.00022739,2]
[361933941,1747899040924,-494.08,0.00022739,2]
[361933943,1747899040935,-236.46398,0.00022739,2]
[361933945,1747899040947,-437.64,0.00022739,2]
[361933947,1747899040957,-430.0,0.00022739,2]
[361933949,1747899040967,-430.0,0.00022739,2]
[361933951,1747899040977,-436.67,0.00022739,2]
[361933953,1747899040988,-430.0,0.00022739,2]
[361933955,1747899040997,-2447.89,0.00022739,2]
[361933957,1747899041007,-430.0,0.00022739,2]
[361933959,1747899041017,-475.46,0.00022739,2]
[361933961,1747899041027,-430.0,0.00022739,2]
[361933963,1747899041037,-430.0,0.00022739,2]
[361933965,1747899041047,-430.0,0.00022739,2]
[361933967,1747899041057,-1056.91,0.00022739,2]
[361933969,1747899041068,-430.0,0.00022739,2]
[361933972,1747899041078,-430.0,0.00022739,2]
[361933974,1747899041087,-304.72,0.00022739,2]
[361933976,1747899041097,-1469.2,0.00022739,2]
[361933977,1747899041107,-430.0,0.00022739,2]
[361933980,1747899041122,-430.0,0.00022739,2]
[361933982,1747899041134,-470.0,0.00022739,2]
[361933984,1747899041143,-500.3,0.00022739,2]
[361933986,1747899041155,-430.0,0.00022739,2]
[361933988,1747899041165,-926.0,0.00022739,2]
[361933990,1747899041175,-430.0,0.00022739,2]
[361933991,1747899041185,-430.0,0.00022739,2]
[361933992,1747899041195,-430.0,0.00022739,2]
[361933993,1747899041205,-430.0,0.00022739,2]
[361933994,1747899041215,-1009.58,0.00022739,2]
[361933995,1747899041226,-383.45,0.00022739,2]
[361933996,1747899041236,-430.0,0.00022739,2]
[361933997,1747899041250,-430.0,0.00022739,2]
[361933998,1747899041260,-430.0,0.00022739,2]
[361934000,1747899041270,-430.0,0.00022739,2]
[361934001,1747899041279,-327.67,0.00022739,2]
[361934003,1747899041289,-430.0,0.00022739,2]
[361934005,1747899041299,-430.0,0.00022739,2]
[361934006,1747899041309,-430.0,0.00022739,2]
[361934007,1747899041319,-345.4,0.00022739,2]
[361934009,1747899041330,-430.0,0.00022739,2]
[361934011,1747899041340,-430.0,0.00022739,2]
[361934012,1747899041350,-430.0,0.00022739,2]
[361934013,1747899041360,-430.0,0.00022739,2]
[361934014,1747899041370,-635.0,0.00022739,2]
[361934015,1747899041380,-430.0,0.00022739,2]
[361934016,1747899041390,-430.0,0.00022739,2]
[361934017,1747899041399,-430.0,0.00022739,2]
[361934018,1747899041409,-430.0,0.00022739,2]
[361934019,1747899041418,-1493.02,0.00022739,2]
[361934020,1747899041428,-430.0,0.00022739,2]
[361934021,1747899041437,-430.0,0.00022739,2]
[361934022,1747899041448,-430.0,0.00022739,2]
[361934023,1747899041458,-688.76,0.00022739,2]
[361934024,1747899041468,-430.0,0.00022739,2]
[361934025,1747899041478,-430.0,0.00022739,2]
[361934026,1747899041488,-430.0,0.00022739,2]
[361934027,1747899041497,-535.09,0.00022739,2]
[361934028,1747899041507,-530.0,0.00022739,2]
[361934029,1747899041604,-430.0,0.00022739,2]
[361934030,1747899041614,-430.0,0.00022739,2]
[361934031,1747899041624,-254.47313167,0.00022739,2]
[361934032,1747899041635,-430.0,0.00022739,2]
[361934033,1747899041645,-430.0,0.00022739,2]
[361934034,1747899041655,-420.0,0.00022739,2]
[361934035,1747899041664,-430.0,0.00022739,2]
[361934036,1747899041674,-1063.86,0.00022739,2]
[361934037,1747899041684,-2278.27,0.00022739,2]
[361934038,1747899041694,-430.0,0.00022739,2]
[361934039,1747899041703,-430.0,0.00022739,2]
[361934040,1747899041713,-3039.67,0.00022739,2]
[361934041,1747899041723,-430.0,0.00022739,2]
[361934042,1747899041732,-430.0,0.00022739,2]
[361934043,1747899041742,-466.64,0.00022739,2]
[361934044,1747899041752,-430.0,0.00022739,2]
[361934045,1747899041762,-430.0,0.00022739,2]
[361934046,1747899041771,-430.0,0.00022739,2]
[361934047,1747899041780,-692.67,0.00022739,2]
[361934048,1747899041790,-430.0,0.00022739,2]
[361934049,1747899041800,-1073.63,0.00022739,2]
[361934050,1747899041810,-651.66,0.00022739,2]
[361934051,1747899041819,-430.0,0.00022739,2]
[361934052,1747899041829,-430.0,0.00022739,2]
[361934053,1747899041839,-430.0,0.00022739,2]
[361934054,1747899041848,-430.0,0.00022739,2]
[361934055,1747899041857,-483.12,0.00022739,2]
[361934056,1747899041867,-420.0,0.00022739,2]
[361934057,1747899041878,-430.0,0.00022739,2]
[361934058,1747899041889,-430.0,0.00022739,2]
[361934059,1747899041898,-755.55,0.00022739,2]
[361934060,1747899041908,-153.0,0.0002274,2]
[361934061,1747899041917,-151.0,0.00022783,7]
[361934062,1747899041926,-151.0,0.00022783,7]
[361934063,1747899041936,-153.0,0.00022849,2]
[361934064,1747899041945,-153.0,0.00022849,2]
[361934065,1747899041956,-153.0,0.00022849,2]
[361934066,1747899041966,-316.9804148,0.00022849,2]
[361934067,1747899041975,-2116.02272695,0.000229,8]
[361934068,1747899041985,-257.0039826,0.00022904,2]
[361934069,1747899041994,-1086.34994873,0.00022916,2]
[361934070,1747899042004,-1000.0,0.00022916,2]
[361934071,1747899042014,-1017.91697295,0.00022916,2]
[361934072,1747899042024,-1000.0,0.00022933,2]
[361934073,1747899042033,-506.26787814,0.00022933,2]
[361934074,1747899042043,-1000.0,0.00022933,2]
[361934075,1747899042052,-1000.0,0.00022935,2]
[361934076,1747899042062,-212.4501065,0.00022968,3]
[361934077,1747899042072,-894.64583333,0.00022968,3]
[361934078,1747899042082,-941.98974658,0.00022991,2]
[361934079,1747899042092,-783.06253812,0.00022998,2]
[361934080,1747899042102,-1000.0,0.00022998,2]
[361934081,1747899042111,-151.0,0.00023,7]
[361934082,1747899042121,-151.0,0.00023,7]
[361934083,1747899042131,-153.800042,0.00023,7]
[361934084,1747899042141,-151.0,0.00023,7]
[361934085,1747899042153,-176.463575,0.00023,7]
[361934086,1747899042164,-151.0,0.00023,7]
[361934087,1747899042173,-151.0,0.00023,7]
[361934088,1747899042182,-151.653499,0.00023,7]
[361934089,1747899042191,-1299.58045,0.00023,7]
[361934090,1747899042203,-1299.58045,0.00023,7]
[361934091,1747899042213,-151.0,0.00023,7]
[361934092,1747899042222,-151.0,0.00023,7]
[361934093,1747899042233,-151.0,0.00023,7]
[361934094,1747899042243,-151.0,0.00023,7]
[361934095,1747899042252,-9550.0,0.00023,2]
[361934097,1747899042262,-160.0,0.00023,3]
[361934098,1747899042272,-319.66727404,0.00023,21]
[361934099,1747899042282,-2116.02272673,0.00023003,8]
[361934100,1747899042291,-151.0,0.00023004,7]
[361934101,1747899042301,-1299.58045,0.00023004,7]
[361934102,1747899042310,-151.0,0.00023004,7]
[361934103,1747899042320,-151.0,0.00023004,7]
[361934104,1747899042329,-894.64583333,0.00023004,7]
[361934105,1747899042340,-500.0,0.0002301,2]
[361934106,1747899042351,-430.0,0.00023013,2]
[361934107,1747899042360,-430.0,0.00023013,2]
[361934108,1747899042371,-430.0,0.00023013,2]
[361934109,1747899042381,-430.0,0.00023013,2]
[361934111,1747899042390,-430.0,0.00023013,2]
[361934113,1747899042400,-430.0,0.00023013,2]
[361934116,1747899042409,-187.87904902,0.00023013,2]
[361934118,1747899042419,-430.0,0.00023013,2]
[361934119,1747899042430,-430.0,0.00023013,2]
[361934120,1747899042441,-430.0,0.00023013,2]
[361934121,1747899042452,-430.0,0.00023013,2]
[361934122,1747899042462,-430.0,0.00023013,2]
[361934123,1747899042472,-461.51,0.00023013,2]
[361934124,1747899042482,-177.53415027,0.00023013,2]
[361934125,1747899042494,-430.0,0.00023013,2]
[361934126,1747899042504,-430.0,0.00023013,2]
[361934127,1747899042513,-450.35,0.00023013,2]
[361934128,1747899042523,-430.0,0.00023013,2]
[361934129,1747899042533,-430.0,0.00023013,2]
[361934130,1747899042543,-430.0,0.00023013,2]
[361934131,1747899042552,-430.0,0.00023013,2]
[361934132,1747899042562,-430.0,0.00023013,2]
[361934133,1747899042571,-430.0,0.00023013,2]
[361934134,1747899042581,-430.0,0.00023013,2]
[361934135,1747899042590,-701.93,0.00023013,2]
[361934136,1747899042600,-593.38,0.00023013,2]
[361934137,1747899042609,-437.64,0.00023013,2]
[361934138,1747899042618,-430.0,0.00023013,2]
[361934139,1747899042627,-430.0,0.00023013,2]
[361934140,1747899042638,-436.67,0.00023013,2]
[361934141,1747899042647,-430.0,0.00023013,2]
[361934142,1747899042656,-2447.89,0.00023013,2]
[361934143,1747899042666,-430.0,0.00023013,2]
[361934144,1747899042676,-475.46,0.00023013,2]
[361934145,1747899042685,-430.0,0.00023013,2]
[361934146,1747899042695,-430.0,0.00023013,2]
[361934147,1747899042704,-1056.91,0.00023013,2]
[361934149,1747899042714,-430.0,0.00023013,2]
[361934151,1747899042724,-430.0,0.00023013,2]
[361934153,1747899042733,-1469.2,0.00023013,2]
[361934155,1747899042743,-552.69,0.00023013,2]
[361934157,1747899042752,-430.0,0.00023013,2]
[361934159,1747899042762,-926.0,0.00023013,2]
[361934161,1747899042772,-430.0,0.00023013,2]
[361934163,1747899042781,-430.0,0.00023013,2]
[361934165,1747899042791,-430.0,0.00023013,2]
[361934167,1747899042800,-1009.58,0.00023013,2]
[361934169,1747899042809,-430.0,0.00023013,2]